[Event "Niedersachsen-ch A 2024"]
[Site "Verden Aller"]
[Date "2024.01.06"]
[Round "5.23"]
[White "Kieselbach, Jannik"]
[Black "Zweigait, Leon"]
[Result "1-0"]
[ECO "B01"]
[WhiteElo "1885"]
[BlackElo "1526"]
[Annotator "NA RC"]
[PlyCount "43"]
[EventDate "2024.01.01"]
[EventType "swiss"]
[EventCountry "GER"]
[SourceTitle "playchess.com"]
[Source "ChessBase"]
[SourceQuality "1"]
[TimeControl "40/5400+30:1800+30"]

1. e4 {[%emt 0:00:53]} d5 {[%emt 0:00:13]} 2. exd5 {[%emt 0:00:37]} Nf6 {[%emt 0:00:29]} 3. d4 {[%emt 0:00:40]} Qxd5 {[%emt 0:00:34]} 4. Nc3 {[%emt 0:00:25]} Qd6 {[%emt 0:00:14]} 5. Nf3 {[%emt 0:02:01]} a6 {[%emt 0:00:37]} 6. h3 {[%emt 0:04:34]} b5 {[%emt 0:00:35]} 7. Bd3 {[%emt 0:00:51]} Bb7 {[%emt 0:00:31]} 8. Qe2 {[%emt 0:01:58]} Nbd7 {[%emt 0:01:52]} 9. Ne4 {[%emt 0:05:15]} Qb6 {[%emt 0:01:06]} 10. O-O {[%emt 0:01:40]} e6 {[%emt 0:00:09]} 11. Re1 {[%emt 0:13:42]} Be7 {[%emt 0:15:41]} 12. c3 {[%emt 0:08:42]} h6 {[%emt 0:00:26]} 13. Bd2 {[%emt 0:07:07]} O-O {[%emt 0:00:46]} 14. b4 {[%emt 0:05:01]} Bd5 {[%emt 0:01:05]} 15. a4 {[%emt 0:01:34]} Nxe4 {[%emt 0:00:18]} 16. Bxe4 {[%emt 0:00:11]} Nf6 {[%emt 0:00:12]} 17. Bxd5 {[%emt 0:02:19]} Nxd5 {[%emt 0:01:15]} 18. Ne5 {[%emt 0:00:24]} Rfd8 {[%emt 0:00:52]} 19. Qh5 {[%emt 0:02:03]} f6 {[%emt 0:05:45]} 20. Qf7+ {[%emt 0:00:30]} Kh7 {[%emt 0:00:07]} 21. Bxh6 {[%emt 0:04:02]} Bf8 {[%emt 0:00:12]} 22. Bxg7 {[%emt 0:02:30]} 1-0

[Event "Niedersachsen-ch A 2024"]
[Site "Verden Aller"]
[Date "2024.01.06"]
[Round "5.24"]
[White "Kelemen, Alexander"]
[Black "Seer, Maurice"]
[Result "1/2-1/2"]
[ECO "D15"]
[WhiteElo "1817"]
[BlackElo "1912"]
[Annotator "NA RC"]
[PlyCount "21"]
[EventDate "2024.01.01"]
[EventType "swiss"]
[EventCountry "GER"]
[SourceTitle "playchess.com"]
[Source "ChessBase"]
[SourceQuality "1"]
[TimeControl "40/5400+30:1800+30"]

1. d4 {[%emt 0:00:05]} Nf6 {[%emt 0:00:10]} 2. Nf3 {[%emt 0:00:16]} d5 {[%emt 0:00:15]} 3. c4 {[%emt 0:00:07]} c6 {[%emt 0:00:20]} 4. e3 {[%emt 0:00:24]} a6 {[%emt 0:00:21]} 5. Nc3 {[%emt 0:00:18]} Bf5 {[%emt 0:00:17]} 6. Qb3 {[%emt 0:00:31]} Ra7 {[%emt 0:02:20]} 7. Nh4 {[%emt 0:02:41]} Bg6 {[%emt 0:08:39]} 8. Nxg6 {[%emt 0:01:00]} hxg6 {[%emt 0:00:11]} 9. Bd3 {[%emt 0:03:04]} e6 {[%emt 0:00:24]} 10. Bd2 {[%emt 0:00:34]} Bd6 {[%emt 0:01:40]} 11. O-O-O {[%emt 0:03:54]} 1/2-1/2

[Event "Niedersachsen-ch A 2024"]
[Site "Verden Aller"]
[Date "2024.01.06"]
[Round "5.25"]
[White "Nuerenberg, Marius"]
[Black "Kiesel, Harald"]
[Result "1/2-1/2"]
[ECO "C02"]
[WhiteElo "1764"]
[BlackElo "1975"]
[Annotator "NA RC"]
[PlyCount "38"]
[EventDate "2024.01.01"]
[EventType "swiss"]
[EventCountry "GER"]
[SourceTitle "playchess.com"]
[Source "ChessBase"]
[SourceQuality "1"]
[TimeControl "40/5400+30:1800+30"]

1. e4 {[%emt 0:00:06]} e6 {[%emt 0:00:05]} 2. d4 {[%emt 0:00:07]} d5 {[%emt 0:00:04]} 3. e5 {[%emt 0:00:23]} c5 {[%emt 0:00:09]} 4. c3 {[%emt 0:00:04]} Nc6 {[%emt 0:00:08]} 5. Nf3 {[%emt 0:00:06]} Bd7 {[%emt 0:00:10]} 6. Bd3 {[%emt 0:00:11]} cxd4 {[%emt 0:00:24]} 7. O-O {[%emt 0:04:14]} dxc3 {[%emt 0:06:59]} 8. Nxc3 {[%emt 0:05:00]} a6 {[%emt 0:02:38]} 9. Re1 {[%emt 0:02:03]} h6 {[%emt 0:07:48]} 10. Be3 {[%emt 0:16:09]} b5 {[%emt 0:08:37]} 11. a4 {[%emt 0:15:42]} b4 {[%emt 0:00:37]} 12. Ne2 {[%emt 0:00:04]} Nge7 {[%emt 0:03:09]} 13. Rc1 {[%emt 0:11:17]} g6 {[%emt 0:02:29]} 14. Bc5 {[%emt 0:09:29]} Nf5 {[%emt 0:02:51]} 15. Bxf8 {[%emt 0:01:55]} Kxf8 {[%emt 0:00:34]} 16. Qd2 {[%emt 0:08:14]} a5 {[%emt 0:11:06]} 17. Bxf5 {[%emt 0:02:21]} gxf5 {[%emt 0:00:12]} 18. Nf4 {[%emt 0:00:24]} Ne7 {[%emt 0:12:17]} 19. b3 {[%emt 0:00:43]} Rc8 {[%emt 0:02:18]} 1/2-1/2

[Event "Niedersachsen-ch A 2024"]
[Site "Verden Aller"]
[Date "2024.01.06"]
[Round "5.26"]
[White "Kozik, Andreas"]
[Black "ter Stal, Lars"]
[Result "0-1"]
[ECO "D02"]
[WhiteElo "1912"]
[BlackElo "1770"]
[Annotator "RC"]
[PlyCount "88"]
[EventDate "2024.01.01"]
[EventType "swiss"]
[EventCountry "GER"]
[SourceTitle "playchess.com"]
[Source "ChessBase"]
[SourceQuality "1"]
[TimeControl "40/5400+30:1800+30"]

1. d4 {[%emt 0:00:02]} Nf6 {[%emt 0:01:13]} 2. Nf3 {[%emt 0:00:07]} e6 {[%emt 0:00:24]} 3. Bf4 {[%emt 0:00:14]} d5 {[%emt 0:00:21]} 4. e3 {[%emt 0:00:16]} c5 {[%emt 0:01:07]} 5. c3 {[%emt 0:00:23]} Bd6 {[%emt 0:01:36]} 6. Bg3 {[%emt 0:00:07]} O-O {[%emt 0:00:31]} 7. Nbd2 {[%emt 0:00:27]} Qc7 {[%emt 0:00:39]} 8. dxc5 {[%emt 0:00:38]} Qxc5 {[%emt 0:00:52]} 9. Bd3 {[%emt 0:00:13]} Bd7 {[%emt 0:10:17]} 10. e4 {[%emt 0:01:16]} Be7 {[%emt 0:12:50]} 11. Bf4 {[%emt 0:27:39]} dxe4 {[%emt 0:04:47]} 12. Nxe4 {[%emt 0:04:58]} Nxe4 {[%emt 0:00:52]} 13. Bxe4 {[%emt 0:00:10]} Bc6 {[%emt 0:00:37]} 14. Qc2 {[%emt 0:06:17]} Bxe4 {[%emt 0:01:08]} 15. Qxe4 {[%emt 0:00:06]} Qc6 {[%emt 0:04:09]} 16. Qxc6 {[%emt 0:00:28]} Nxc6 {[%emt 0:00:06]} 17. Ke2 {[%emt 0:00:06]} f6 {[%emt 0:07:03]} 18. Rad1 {[%emt 0:01:19]} Rfd8 {[%emt 0:00:28]} 19. Bc7 {[%emt 0:05:09]} Rxd1 {[%emt 0:04:28]} 20. Rxd1 {[%emt 0:00:07]} e5 {[%emt 0:03:51]} 21. Bd6 {[%emt 0:01:52]} Kf7 {[%emt 0:01:08]} 22. Ne1 {[%emt 0:04:00]} Rd8 {[%emt 0:05:41]} 23. Bxe7 {[%emt 0:00:08]} Rxd1 {[%emt 0:00:09]} 24. Kxd1 {[%emt 0:00:09]} Kxe7 {[%emt 0:02:15]} 25. Nc2 {[%emt 0:00:19]} Ke6 {[%emt 0:01:42]} 26. Kd2 {[%emt 0:01:10]} f5 {[%emt 0:06:13]} 27. Kd3 {[%emt 0:06:36]} e4+ {[%emt 0:05:15]} 28. Ke2 {[%emt 0:07:34]} g5 {[%emt 0:03:39]} 29. f3 {[%emt 0:07:41]} exf3+ {[%emt 0:01:17]} 30. Kxf3 {[%emt 0:00:33]} Ne5+ {[%emt 0:04:46]} 31. Ke2 {[%emt 0:00:11]} f4 {[%emt 0:03:54]} 32. h3 {[%emt 0:05:06]} Kd5 {[%emt 0:01:42]} 33. b3 {[%emt 0:07:45]} Ke4 {[%emt 0:00:48]} 34. Ne1 {[%emt 0:03:13]} g4 {[%emt 0:02:23]} 35. hxg4 {[%emt 0:00:44]} Nxg4 {[%emt 0:00:07]} 36. Nf3 {[%emt 0:03:29]} h5 {[%emt 0:03:21]} 37. Nd2+ {[%emt 0:00:34]} Kf5 {[%emt 0:03:07]} 38. Nc4 {[%emt 0:02:11]} Nf6 {[%emt 0:02:56]} 39. Kf3 {[%emt 0:01:05]} Ne4 {[%emt 0:00:08]} 40. a4 {[%emt 0:01:05]} b6 {[%emt 0:01:56]} 41. b4 {[%emt 0:11:22]} h4 {[%emt 0:07:20]} 42. a5 {[%emt 0:04:03]} b5 {[%emt 0:05:07]} 43. Nb6 {[%emt 0:04:53]} axb6 {[%emt 0:03:47]} 44. a6 {[%emt 0:01:11]} Ng5+ {[%emt 0:00:15]} 0-1

[Event "Niedersachsen-ch A 2024"]
[Site "Verden Aller"]
[Date "2024.01.06"]
[Round "5.27"]
[White "Langer, Michael S."]
[Black "Hoke, Adrian"]
[Result "1-0"]
[ECO "D00"]
[WhiteElo "1888"]
[BlackElo "1765"]
[Annotator "NA RC"]
[PlyCount "99"]
[EventDate "2024.01.01"]
[EventType "swiss"]
[EventCountry "GER"]
[SourceTitle "playchess.com"]
[Source "ChessBase"]
[SourceQuality "1"]
[TimeControl "40/5400+30:1800+30"]

1. d4 {[%emt 0:00:06]} d5 {[%emt 0:00:14]} 2. Bf4 {[%emt 0:00:31]} Nf6 {[%emt 0:00:23]} 3. e3 {[%emt 0:00:23]} e6 {[%emt 0:00:41]} 4. Nd2 {[%emt 0:02:41]} c5 {[%emt 0:01:04]} 5. c3 {[%emt 0:00:21]} Bd6 {[%emt 0:01:10]} 6. Bxd6 {[%emt 0:02:22]} Qxd6 {[%emt 0:00:09]} 7. f4 {[%emt 0:05:35]} O-O {[%emt 0:02:43]} 8. Bd3 {[%emt 0:02:48]} b6 {[%emt 0:02:53]} 9. Ngf3 {[%emt 0:10:14]} Ba6 {[%emt 0:05:24]} 10. Bxa6 {[%emt 0:00:16]} Nxa6 {[%emt 0:00:06]} 11. Qe2 {[%emt 0:00:45]} Nb8 {[%emt 0:00:37]} 12. Ne5 {[%emt 0:00:45]} Nbd7 {[%emt 0:04:39]} 13. O-O {[%emt 0:00:59]} cxd4 {[%emt 0:02:51]} 14. exd4 {[%emt 0:00:45]} b5 {[%emt 0:03:13]} 15. g4 {[%emt 0:08:06]} Rab8 {[%emt 0:09:52]} 16. g5 {[%emt 0:08:10]} Ne8 {[%emt 0:01:10]} 17. Nxd7 {[%emt 0:04:25]} Qxd7 {[%emt 0:00:10]} 18. Nb3 {[%emt 0:00:12]} b4 {[%emt 0:07:33]} 19. Nc5 {[%emt 0:00:36]} Qe7 {[%emt 0:01:42]} 20. Na6 {[%emt 0:01:43]} Rb6 {[%emt 0:00:49]} 21. Nxb4 {[%emt 0:00:16]} Qd6 {[%emt 0:03:44]} 22. Nd3 {[%emt 0:03:38]} Qe7 {[%emt 0:04:57]} 23. Rae1 {[%emt 0:03:13]} Nd6 {[%emt 0:02:01]} 24. Nc5 {[%emt 0:03:32]} Rfb8 {[%emt 0:14:43]} 25. b3 {[%emt 0:02:08]} Nb7 {[%emt 0:04:56]} 26. Na4 {[%emt 0:05:23]} Rc6 {[%emt 0:03:10]} 27. Qe5 {[%emt 0:03:17]} Qd8 {[%emt 0:01:19]} 28. Rf3 {[%emt 0:03:31]} Nd6 {[%emt 0:01:54]} 29. Nc5 {[%emt 0:02:12]} Rbc8 {[%emt 0:01:50]} 30. Rc1 {[%emt 0:10:55]} Qa5 {[%emt 0:03:27]} 31. a4 {[%emt 0:02:08]} Rxc5 {[%emt 0:03:49]} 32. Qxd6 {[%emt 0:05:15]} R5c6 {[%emt 0:00:22]} 33. Qe5 {[%emt 0:00:12]} Qb6 {[%emt 0:01:50]} 34. b4 {[%emt 0:02:22]} a5 {[%emt 0:00:29]} 35. b5 {[%emt 0:00:17]} Rc4 {[%emt 0:00:06]} 36. f5 {[%emt 0:01:55]} Rxa4 {[%emt 0:01:44]} 37. fxe6 {[%emt 0:00:56]} Qxe6 {[%emt 0:02:37]} 38. Qxe6 {[%emt 0:01:33]} fxe6 {[%emt 0:00:01]} 39. Rcf1 {[%emt 0:02:33]} Rac4 {[%emt 0:01:44]} 40. b6 {[%emt 0:01:41]} Rxc3 {[%emt 0:08:24]} 41. b7 {[%emt 0:30:25]} Rc2 {[%emt 0:28:15]} 42. bxc8=Q+ {[%emt 0:00:00]} Rxc8 {[%emt 0:00:00]} 43. Re3 {[%emt 0:00:00]} h6 {[%emt 0:00:00]} 44. gxh6 {[%emt 0:00:00]} gxh6 {[%emt 0:00:00]} 45. Rxe6 {[%emt 0:00:00]} a4 {[%emt 0:00:00]} 46. Rd6 {[%emt 0:00:00]} a3 {[%emt 0:00:00]} 47. Rxd5 {[%emt 0:00:00]} a2 {[%emt 0:00:00]} 48. Ra5 {[%emt 0:00:00]} Rc2 {[%emt 0:00:00]} 49. Ra1 {[%emt 0:00:00]} Rb2 {[%emt 0:00:00]} 50. R5xa2 {[%emt 0:06:25]} 1-0

[Event "Niedersachsen-ch A 2024"]
[Site "Verden Aller"]
[Date "2024.01.06"]
[Round "5.30"]
[White "Stummeyer, Dieter"]
[Black "Schiller, Jan-Hendrik"]
[Result "0-1"]
[ECO "B84"]
[WhiteElo "1804"]
[BlackElo "1881"]
[Annotator "NA RC"]
[PlyCount "106"]
[EventDate "2024.01.01"]
[EventType "swiss"]
[EventCountry "GER"]
[SourceTitle "playchess.com"]
[Source "ChessBase"]
[SourceQuality "1"]
[TimeControl "40/5400+30:1800+30"]

1. e4 {[%emt 0:00:03]} c5 {[%emt 0:06:53]} 2. Nf3 {[%emt 0:00:09]} d6 {[%emt 0:00:17]} 3. d4 {[%emt 0:00:09]} cxd4 {[%emt 0:00:09]} 4. Nxd4 {[%emt 0:00:08]} Nf6 {[%emt 0:00:15]} 5. Nc3 {[%emt 0:00:13]} a6 {[%emt 0:00:09]} 6. Be2 {[%emt 0:00:16]} e6 {[%emt 0:00:28]} 7. Be3 {[%emt 0:00:56]} Be7 {[%emt 0:01:28]} 8. O-O {[%emt 0:01:50]} Qc7 {[%emt 0:01:00]} 9. a4 {[%emt 0:02:04]} Nc6 {[%emt 0:02:28]} 10. Nb3 {[%emt 0:00:53]} O-O {[%emt 0:05:12]} 11. a5 {[%emt 0:00:49]} Nd7 {[%emt 0:01:50]} 12. Qd2 {[%emt 0:01:35]} Nce5 {[%emt 0:08:17]} 13. Rfc1 {[%emt 0:09:20]} b5 {[%emt 0:02:19]} 14. axb6 {[%emt 0:00:49]} Nxb6 {[%emt 0:00:21]} 15. Na5 {[%emt 0:02:29]} Nbc4 {[%emt 0:02:46]} 16. Nxc4 {[%emt 0:00:25]} Nxc4 {[%emt 0:00:11]} 17. Bxc4 {[%emt 0:00:42]} Qxc4 {[%emt 0:00:17]} 18. b3 {[%emt 0:01:18]} Qc6 {[%emt 0:03:24]} 19. f3 {[%emt 0:01:02]} Bd7 {[%emt 0:07:20]} 20. Ne2 {[%emt 0:05:35]} Rfc8 {[%emt 0:03:49]} 21. c4 {[%emt 0:01:57]} Be8 {[%emt 0:08:36]} 22. Nd4 {[%emt 0:01:09]} Qb7 {[%emt 0:02:36]} 23. Qd3 {[%emt 0:02:18]} h6 {[%emt 0:03:59]} 24. Rab1 {[%emt 0:02:04]} a5 {[%emt 0:10:17]} 25. Bd2 {[%emt 0:04:15]} Rd8 {[%emt 0:03:31]} 26. Be3 {[%emt 0:14:41]} Bf6 {[%emt 0:02:27]} 27. Ne2 {[%emt 0:03:01]} d5 {[%emt 0:01:56]} 28. exd5 {[%emt 0:01:44]} exd5 {[%emt 0:00:18]} 29. c5 {[%emt 0:00:27]} Bb5 {[%emt 0:00:57]} 30. Qd2 {[%emt 0:00:56]} Bxe2 {[%emt 0:04:50]} 31. Qxe2 {[%emt 0:00:05]} d4 {[%emt 0:00:59]} 32. Bf4 {[%emt 0:01:27]} Qc6 {[%emt 0:02:40]} 33. Qc4 {[%emt 0:01:39]} Be7 {[%emt 0:02:44]} 34. Rb2 {[%emt 0:03:20]} Rac8 {[%emt 0:00:36]} 35. Rd2 {[%emt 0:02:25]} Qxc5 {[%emt 0:00:27]} 36. Qxc5 {[%emt 0:01:11]} Rxc5 {[%emt 0:00:41]} 37. Rxc5 {[%emt 0:00:24]} Bxc5 {[%emt 0:00:14]} 38. Bc7 {[%emt 0:01:41]} Rd5 {[%emt 0:04:09]} 39. Rd3 {[%emt 0:00:13]} Be7 {[%emt 0:00:57]} 40. Kf1 {[%emt 0:01:15]} Bf6 {[%emt 0:01:22]} 41. Ke2 {[%emt 0:30:17]} Kf8 {[%emt 0:33:53]} 42. g3 {[%emt 0:02:22]} Ke8 {[%emt 0:02:20]} 43. Bf4 {[%emt 0:00:33]} Kd7 {[%emt 0:00:00]} 44. Bd2 {[%emt 0:00:00]} Kc6 {[%emt 0:00:00]} 45. f4 {[%emt 0:00:00]} g5 {[%emt 0:00:00]} 46. Kf3 {[%emt 0:00:00]} Bd8 {[%emt 0:00:00]} 47. Ke4 {[%emt 0:00:00]} f5+ {[%emt 0:00:00]} 48. Kf3 {[%emt 0:00:00]} g4+ {[%emt 0:00:00]} 49. Kg2 {[%emt 0:00:00]} Rd7 {[%emt 0:00:00]} 50. Bc1 {[%emt 0:00:00]} Kd5 {[%emt 0:00:00]} 51. Kf2 {[%emt 0:00:00]} Ke4 {[%emt 0:00:00]} 52. Ke2 {[%emt 0:00:00]} Rc7 {[%emt 0:00:00]} 53. Kd2 {[%emt 0:00:00]} Rxc1 {[%emt 0:00:00]} 0-1

[Event "Niedersachsen-ch A 2024"]
[Site "Verden Aller"]
[Date "2024.01.06"]
[Round "5.31"]
[White "Behn, Cord"]
[Black "Moerke, Niklas"]
[Result "0-1"]
[ECO "A18"]
[WhiteElo "1837"]
[BlackElo "1800"]
[Annotator "NA RC"]
[PlyCount "80"]
[EventDate "2024.01.01"]
[EventType "swiss"]
[EventCountry "GER"]
[SourceTitle "playchess.com"]
[Source "ChessBase"]
[SourceQuality "1"]
[TimeControl "40/5400+30:1800+30"]

1. c4 {[%emt 0:00:04]} e6 {[%emt 0:00:05]} 2. Nc3 {[%emt 0:00:24]} Nf6 {[%emt 0:00:13]} 3. e4 {[%emt 0:02:04]} e5 {[%emt 0:05:27]} 4. Nf3 {[%emt 0:01:01]} Nc6 {[%emt 0:00:21]} 5. d4 {[%emt 0:02:09]} exd4 {[%emt 0:00:32]} 6. Nxd4 {[%emt 0:00:06]} Bb4 {[%emt 0:01:37]} 7. f3 {[%emt 0:09:37]} O-O {[%emt 0:01:16]} 8. Be3 {[%emt 0:02:07]} Nxe4 {[%emt 0:07:21]} 9. fxe4 {[%emt 0:08:07]} Qh4+ {[%emt 0:00:39]} 10. Bf2 {[%emt 0:12:45]} Qxe4+ {[%emt 0:02:41]} 11. Qe2 {[%emt 0:03:46]} Qg6 {[%emt 0:02:42]} 12. Nxc6 {[%emt 0:06:28]} dxc6 {[%emt 0:00:38]} 13. h3 {[%emt 0:01:15]} Bf5 {[%emt 0:01:07]} 14. O-O-O {[%emt 0:02:49]} Rad8 {[%emt 0:03:56]} 15. g4 {[%emt 0:06:08]} Rxd1+ {[%emt 0:01:30]} 16. Qxd1 {[%emt 0:01:54]} Bxc3 {[%emt 0:03:56]} 17. gxf5 {[%emt 0:00:56]} Qxf5 {[%emt 0:02:04]} 18. Be3 {[%emt 0:07:31]} Qe4 {[%emt 0:03:47]} 19. Bc5 {[%emt 0:00:24]} Re8 {[%emt 0:05:42]} 20. Bd3 {[%emt 0:02:36]} Bxb2+ {[%emt 0:02:12]} 21. Kxb2 {[%emt 0:01:50]} Qe5+ {[%emt 0:00:07]} 22. Kc2 {[%emt 0:00:48]} Qxc5 {[%emt 0:00:14]} 23. Qg4 {[%emt 0:02:17]} Qf2+ {[%emt 0:02:09]} 24. Kb3 {[%emt 0:02:38]} a5 {[%emt 0:03:34]} 25. Rf1 {[%emt 0:02:32]} Qe3 {[%emt 0:03:33]} 26. Qf5 {[%emt 0:00:51]} f6 {[%emt 0:08:03]} 27. Qxh7+ {[%emt 0:00:59]} Kf8 {[%emt 0:03:39]} 28. Kc2 {[%emt 0:06:44]} Qg5 {[%emt 0:04:19]} 29. h4 {[%emt 0:03:29]} Qg2+ {[%emt 0:00:44]} 30. Kc3 {[%emt 0:00:25]} Qg4 {[%emt 0:08:57]} 31. h5 {[%emt 0:00:29]} Re5 {[%emt 0:03:47]} 32. Qh8+ {[%emt 0:07:14]} Ke7 {[%emt 0:00:29]} 33. h6 {[%emt 0:00:26]} Re3 {[%emt 0:09:41]} 34. h7 {[%emt 0:02:50]} b5 {[%emt 0:02:09]} 35. Kd2 {[%emt 0:01:15]} Qg3 {[%emt 0:03:50]} 36. Kc2 {[%emt 0:00:31]} Qg2+ {[%emt 0:01:37]} 37. Kc3 {[%emt 0:00:38]} bxc4 {[%emt 0:03:35]} 38. Kxc4 {[%emt 0:00:30]} Qd5+ {[%emt 0:00:16]} 39. Kc3 {[%emt 0:00:14]} Qxd3+ {[%emt 0:00:18]} 40. Kb2 {[%emt 0:00:05]} Re2+ {[%emt 0:00:50]} 0-1

[Event "Niedersachsen-ch A 2024"]
[Site "Verden Aller"]
[Date "2024.01.06"]
[Round "5.32"]
[White "Aden, Keno"]
[Black "Gehrke, Mathias"]
[Result "1/2-1/2"]
[ECO "A43"]
[WhiteElo "1832"]
[BlackElo "1761"]
[Annotator "NA RC"]
[PlyCount "85"]
[EventDate "2024.01.01"]
[EventType "swiss"]
[EventCountry "GER"]
[SourceTitle "playchess.com"]
[Source "ChessBase"]
[SourceQuality "1"]
[TimeControl "40/5400+30:1800+30"]

1. d4 {[%emt 0:00:02]} c5 {[%emt 0:00:12]} 2. d5 {[%emt 0:00:22]} d6 {[%emt 0:00:32]} 3. Nc3 {[%emt 0:00:08]} Nf6 {[%emt 0:02:31]} 4. e4 {[%emt 0:00:07]} e6 {[%emt 0:01:17]} 5. Bb5+ {[%emt 0:00:08]} Bd7 {[%emt 0:00:23]} 6. a4 {[%emt 0:00:03]} a6 {[%emt 0:00:26]} 7. Be2 {[%emt 0:00:22]} exd5 {[%emt 0:01:13]} 8. exd5 {[%emt 0:00:07]} Be7 {[%emt 0:00:41]} 9. Nf3 {[%emt 0:00:26]} Bg4 {[%emt 0:01:09]} 10. O-O {[%emt 0:00:21]} Nbd7 {[%emt 0:01:24]} 11. Bf4 {[%emt 0:02:31]} O-O {[%emt 0:02:20]} 12. h3 {[%emt 0:02:39]} Bxf3 {[%emt 0:00:13]} 13. Bxf3 {[%emt 0:00:04]} Rb8 {[%emt 0:03:01]} 14. Be2 {[%emt 0:08:46]} Qb6 {[%emt 0:04:21]} 15. a5 {[%emt 0:04:13]} Qc7 {[%emt 0:05:15]} 16. Qd2 {[%emt 0:03:59]} Rfe8 {[%emt 0:02:49]} 17. Bd3 {[%emt 0:17:31]} Bf8 {[%emt 0:00:31]} 18. Rfb1 {[%emt 0:07:27]} g6 {[%emt 0:02:27]} 19. Bh6 {[%emt 0:07:10]} Bg7 {[%emt 0:00:13]} 20. Bxg7 {[%emt 0:00:54]} Kxg7 {[%emt 0:00:07]} 21. Ra4 {[%emt 0:04:28]} Ne5 {[%emt 0:03:58]} 22. Be2 {[%emt 0:01:58]} Qe7 {[%emt 0:07:48]} 23. Rf1 {[%emt 0:11:55]} Ned7 {[%emt 0:01:49]} 24. Rh4 {[%emt 0:08:05]} Ng8 {[%emt 0:00:23]} 25. Re4 {[%emt 0:01:37]} Qd8 {[%emt 0:01:48]} 26. Rxe8 {[%emt 0:01:04]} Qxe8 {[%emt 0:00:03]} 27. Bd3 {[%emt 0:00:16]} Qf8 {[%emt 0:03:15]} 28. Ne4 {[%emt 0:00:47]} Ngf6 {[%emt 0:01:25]} 29. Qc3 {[%emt 0:01:09]} Qe7 {[%emt 0:00:27]} 30. Re1 {[%emt 0:02:09]} Qe5 {[%emt 0:00:58]} 31. Qxe5 {[%emt 0:02:35]} dxe5 {[%emt 0:00:04]} 32. c4 {[%emt 0:02:29]} Nxe4 {[%emt 0:00:58]} 33. Bxe4 {[%emt 0:00:09]} f5 {[%emt 0:00:13]} 34. Bc2 {[%emt 0:00:21]} Kf6 {[%emt 0:00:14]} 35. f3 {[%emt 0:00:53]} b6 {[%emt 0:04:51]} 36. axb6 {[%emt 0:02:11]} Nxb6 {[%emt 0:01:25]} 37. b3 {[%emt 0:02:15]} Nd7 {[%emt 0:01:54]} 38. Ra1 {[%emt 0:00:40]} Rb6 {[%emt 0:00:07]} 39. Kf2 {[%emt 0:00:25]} h6 {[%emt 0:01:00]} 40. h4 {[%emt 0:02:22]} h5 {[%emt 0:06:44]} 41. g3 {[%emt 0:10:27]} Ke7 {[%emt 0:02:52]} 42. Ke3 {[%emt 0:02:22]} Nf6 {[%emt 0:02:17]} 43. Ra5 {[%emt 0:04:53]} 1/2-1/2

[Event "Niedersachsen-ch A 2024"]
[Site "Verden Aller"]
[Date "2024.01.06"]
[Round "5.33"]
[White "Wilmink, Anna"]
[Black "Rausch, Darius"]
[Result "1/2-1/2"]
[ECO "B73"]
[WhiteElo "1822"]
[BlackElo "1742"]
[Annotator "NA RC"]
[PlyCount "119"]
[EventDate "2024.01.01"]
[EventType "swiss"]
[EventCountry "GER"]
[SourceTitle "playchess.com"]
[Source "ChessBase"]
[SourceQuality "1"]
[TimeControl "40/5400+30:1800+30"]

1. e4 {[%emt 0:00:02]} c5 {[%emt 0:00:05]} 2. Nf3 {[%emt 0:00:11]} d6 {[%emt 0:00:03]} 3. d4 {[%emt 0:00:15]} cxd4 {[%emt 0:00:04]} 4. Nxd4 {[%emt 0:00:11]} Nf6 {[%emt 0:00:11]} 5. Nc3 {[%emt 0:00:38]} g6 {[%emt 0:00:05]} 6. Be2 {[%emt 0:01:16]} Bg7 {[%emt 0:00:06]} 7. Be3 {[%emt 0:00:38]} O-O {[%emt 0:00:11]} 8. O-O {[%emt 0:01:25]} Nc6 {[%emt 0:01:07]} 9. Kh1 {[%emt 0:06:47]} d5 {[%emt 0:01:28]} 10. exd5 {[%emt 0:05:45]} Nxd5 {[%emt 0:00:26]} 11. Nxd5 {[%emt 0:05:05]} Nxd4 {[%emt 0:25:00]} 12. Bxd4 {[%emt 0:03:17]} Qxd5 {[%emt 0:00:34]} 13. Bxg7 {[%emt 0:01:42]} Qxd1 {[%emt 0:00:15]} 14. Rfxd1 {[%emt 0:01:18]} Kxg7 {[%emt 0:00:10]} 15. Rd2 {[%emt 0:03:05]} Bf5 {[%emt 0:04:12]} 16. Rad1 {[%emt 0:02:30]} Rac8 {[%emt 0:05:37]} 17. c4 {[%emt 0:01:55]} h5 {[%emt 0:06:17]} 18. h3 {[%emt 0:03:34]} Rb8 {[%emt 0:06:48]} 19. c5 {[%emt 0:05:14]} Rfc8 {[%emt 0:05:34]} 20. b4 {[%emt 0:07:11]} b6 {[%emt 0:03:53]} 21. g4 {[%emt 0:11:13]} hxg4 {[%emt 0:06:22]} 22. hxg4 {[%emt 0:00:16]} Be6 {[%emt 0:00:35]} 23. Rc1 {[%emt 0:02:42]} bxc5 {[%emt 0:01:56]} 24. bxc5 {[%emt 0:02:08]} Rb4 {[%emt 0:02:07]} 25. f3 {[%emt 0:08:16]} Ra4 {[%emt 0:01:47]} 26. c6 {[%emt 0:05:49]} Rc7 {[%emt 0:04:31]} 27. Rcc2 {[%emt 0:03:55]} Ra5 {[%emt 0:03:06]} 28. Kg1 {[%emt 0:06:56]} Bd5 {[%emt 0:02:13]} 29. a4 {[%emt 0:01:08]} Kf6 {[%emt 0:04:52]} 30. Kf2 {[%emt 0:02:11]} Ke6 {[%emt 0:02:54]} 31. Bb5 {[%emt 0:02:52]} a6 {[%emt 0:01:41]} 32. Bc4 {[%emt 0:01:08]} Kd6 {[%emt 0:01:47]} 33. Rd4 {[%emt 0:04:57]} Rxc6 {[%emt 0:00:43]} 34. Rcd2 {[%emt 0:00:43]} Rcc5 {[%emt 0:00:30]} 35. Ke3 {[%emt 0:00:45]} e5 {[%emt 0:03:46]} 36. Rxd5+ {[%emt 0:00:56]} Rxd5 {[%emt 0:00:23]} 37. Bxd5 {[%emt 0:00:15]} Rxd5 {[%emt 0:00:08]} 38. Rb2 {[%emt 0:00:38]} Kc6 {[%emt 0:01:32]} 39. Ke4 {[%emt 0:00:31]} Rc5 {[%emt 0:00:51]} 40. Ke3 {[%emt 0:00:34]} Ra5 {[%emt 0:02:10]} 41. Rb4 {[%emt 0:02:01]} Kd5 {[%emt 0:04:26]} 42. g5 {[%emt 0:03:00]} Ke6 {[%emt 0:10:41]} 43. Ke4 {[%emt 0:01:08]} Kd6 {[%emt 0:00:34]} 44. Ke3 {[%emt 0:04:58]} Ke6 {[%emt 0:08:08]} 45. Ke4 {[%emt 0:00:27]} f5+ {[%emt 0:03:04]} 46. gxf6 {[%emt 0:02:10]} Kxf6 {[%emt 0:00:07]} 47. Rc4 {[%emt 0:04:47]} Kg5 {[%emt 0:00:56]} 48. Rb4 {[%emt 0:01:25]} Rc5 {[%emt 0:01:40]} 49. Rb6 {[%emt 0:01:01]} Rc4+ {[%emt 0:00:51]} 50. Kxe5 {[%emt 0:00:12]} Rxa4 {[%emt 0:00:08]} 51. f4+ {[%emt 0:02:04]} Kh5 {[%emt 0:01:11]} 52. Rc6 {[%emt 0:01:49]} a5 {[%emt 0:01:15]} 53. f5 {[%emt 0:01:27]} gxf5 {[%emt 0:00:59]} 54. Kxf5 {[%emt 0:00:14]} Kh4 {[%emt 0:00:18]} 55. Rg6 {[%emt 0:01:40]} Kh3 {[%emt 0:00:21]} 56. Ke5 {[%emt 0:00:53]} Ra1 {[%emt 0:01:41]} 57. Kd4 {[%emt 0:00:38]} a4 {[%emt 0:00:52]} 58. Kc3 {[%emt 0:00:50]} a3 {[%emt 0:01:05]} 59. Ra6 {[%emt 0:00:43]} a2 {[%emt 0:01:17]} 60. Kb2 {[%emt 0:00:15]} 1/2-1/2